fUST/lending_fUST_20260418
["ID","MTS","AMOUNT","RATE_DAILY","PERIOD"]
[420733216,1776513040958,-1083.83,8.767e-05,2]
[420733217,1776513040967,-500.0,8.767e-05,2]
[420733218,1776513040976,-500.0,8.767e-05,2]
[420733219,1776513040986,-500.0,8.767e-05,2]
[420733220,1776513040995,-1720.93,8.767e-05,2]
[420733221,1776513041004,-500.0,8.767e-05,2]
[420733222,1776513041014,-521.42,8.767e-05,2]
[420733223,1776513041023,-735.8,8.767e-05,2]
[420733224,1776513041032,-500.0,8.767e-05,2]
[420733225,1776513041041,-719.62,8.767e-05,2]
[420733226,1776513041050,-615.49,8.767e-05,2]
[420733227,1776513041060,-1745.94,8.767e-05,2]
[420733228,1776513041069,-902.7,8.767e-05,2]
[420733229,1776513041079,-500.0,8.767e-05,2]
[420733230,1776513041088,-500.0,8.767e-05,2]
[420733231,1776513041097,-772.19,8.767e-05,2]
[420733232,1776513041106,-700.8,8.767e-05,2]
[420733233,1776513041116,-500.62,8.767e-05,2]
[420733234,1776513041125,-4393.68,8.767e-05,2]
[420733235,1776513041134,-733.83,8.767e-05,2]
[420733236,1776513041144,-579.09,8.767e-05,2]
[420733237,1776513041153,-897.1,8.767e-05,2]
[420733238,1776513041162,-500.0,8.767e-05,2]
[420733239,1776513041171,-553.2,8.767e-05,2]
[420733240,1776513041180,-536.0,8.767e-05,2]
[420733241,1776513041190,-1186.31,8.767e-05,2]
[420733242,1776513041199,-500.0,8.767e-05,2]
[420733243,1776513041208,-2215.72,8.767e-05,2]
[420733244,1776513041217,-1139.0,8.767e-05,2]
[420733245,1776513041226,-500.0,8.767e-05,2]
[420733246,1776513041235,-512.30708347,8.768e-05,2]
[420733247,1776513041244,-1500.0,8.768e-05,2]
[420733248,1776513041254,-656.12108486,8.8e-05,2]
[420733249,1776513041263,-97971.10960244,8.82e-05,2]
[420733250,1776513041272,-60000.0,8.85e-05,2]
[420733251,1776513041284,-2312.83697232,8.854e-05,2]
[420733252,1776513041292,-161.0,8.9e-05,2]
[420733253,1776513041301,-161.0,9e-05,2]
[420733254,1776513041311,-500.0,9.041e-05,2]
[420733255,1776513041320,-500.0,9.041e-05,2]
[420733256,1776513041329,-500.0,9.041e-05,2]
[420733257,1776513041338,-351.33853987,9.041e-05,2]
[420733258,1776513041347,-500.0,9.041e-05,2]
[420733259,1776513041356,-500.0,9.041e-05,2]
[420733260,1776513041366,-500.0,9.041e-05,2]
[420733261,1776513041375,-1431.39,9.041e-05,2]
[420733262,1776513041384,-500.0,9.041e-05,2]
[420733263,1776513041393,-557.23,9.041e-05,2]
[420733264,1776513041402,-1298.34,9.041e-05,2]
[420733265,1776513041411,-500.0,9.041e-05,2]
[420733266,1776513041421,-1083.83,9.041e-05,2]
[420733267,1776513041431,-500.0,9.041e-05,2]
[420733268,1776513041439,-500.0,9.041e-05,2]
[420733269,1776513041449,-500.0,9.041e-05,2]
[420733270,1776513041458,-1720.93,9.041e-05,2]
[420733271,1776513041467,-500.0,9.041e-05,2]
[420733272,1776513041476,-521.42,9.041e-05,2]
[420733273,1776513041486,-735.8,9.041e-05,2]
[420733274,1776513041497,-500.0,9.041e-05,2]
[420733275,1776513041506,-719.62,9.041e-05,2]
[420733276,1776513041516,-615.49,9.041e-05,2]
[420733277,1776513041526,-1745.94,9.041e-05,2]
[420733279,1776513041535,-902.7,9.041e-05,2]
[420733280,1776513041544,-500.0,9.041e-05,2]
[420733281,1776513041553,-500.0,9.041e-05,2]
[420733282,1776513041563,-772.19,9.041e-05,2]
[420733283,1776513041572,-700.8,9.041e-05,2]
[420733284,1776513041582,-500.62,9.041e-05,2]
[420733285,1776513041591,-4393.68,9.041e-05,2]
[420733286,1776513041601,-733.83,9.041e-05,2]
[420733287,1776513041610,-579.09,9.041e-05,2]
[420733288,1776513041620,-897.1,9.041e-05,2]
[420733289,1776513041630,-500.0,9.041e-05,2]
[420733290,1776513041640,-553.2,9.041e-05,2]
[420733291,1776513041650,-536.0,9.041e-05,2]
[420733292,1776513041659,-1186.31,9.041e-05,2]
[420733293,1776513041668,-500.0,9.041e-05,2]
[420733294,1776513041677,-2215.72,9.041e-05,2]
[420733295,1776513041687,-500.0,9.041e-05,2]
[420733296,1776513041696,-1139.0,9.041e-05,2]
[420733297,1776513041705,-163.0,9.1e-05,2]
[420733298,1776513041715,-285.93,9.1e-05,2]
[420733299,1776513041724,-10000.0,9.123e-05,2]
[420733300,1776513041734,-1000.0,9.148e-05,2]
[420733301,1776513041744,-244.0,9.148e-05,2]
[420733302,1776513041754,-160.67677147,9.158e-05,5]
[420733303,1776513041763,-160.0,9.158e-05,5]
[420733304,1776513041772,-407.32680496,9.169e-05,2]
[420733305,1776513041782,-50000.0,9.2e-05,2]
[420733306,1776513041791,-161.0,9.3e-05,2]
[420733307,1776513041800,-500.0,9.315e-05,2]
[420733308,1776513041809,-500.0,9.315e-05,2]
[420733309,1776513041819,-500.0,9.315e-05,2]
[420733310,1776513041828,-500.0,9.315e-05,2]
[420733311,1776513041837,-500.0,9.315e-05,2]
[420733312,1776513041847,-1431.39,9.315e-05,2]
[420733313,1776513041856,-500.0,9.315e-05,2]
[420733314,1776513041865,-557.23,9.315e-05,2]
[420733315,1776513041874,-1298.34,9.315e-05,2]
[420733316,1776513041883,-500.0,9.315e-05,2]
[420733317,1776513041892,-1083.83,9.315e-05,2]
[420733318,1776513041902,-500.0,9.315e-05,2]
[420733319,1776513041911,-500.0,9.315e-05,2]
[420733320,1776513041920,-500.0,9.315e-05,2]
[420733321,1776513041930,-1720.93,9.315e-05,2]
[420733322,1776513041939,-500.0,9.315e-05,2]
[420733327,1776513042105,-521.42,9.315e-05,2]
[420733328,1776513042114,-735.8,9.315e-05,2]
[420733329,1776513042124,-500.0,9.315e-05,2]
[420733330,1776513042134,-719.62,9.315e-05,2]
[420733331,1776513042143,-615.49,9.315e-05,2]
[420733332,1776513042153,-1745.94,9.315e-05,2]
[420733333,1776513042162,-902.7,9.315e-05,2]
[420733334,1776513042172,-500.0,9.315e-05,2]
[420733335,1776513042181,-500.0,9.315e-05,2]
[420733336,1776513042190,-772.19,9.315e-05,2]
[420733337,1776513042200,-700.8,9.315e-05,2]
[420733338,1776513042211,-500.62,9.315e-05,2]
[420733339,1776513042220,-4393.68,9.315e-05,2]
[420733340,1776513042230,-733.83,9.315e-05,2]
[420733341,1776513042239,-579.09,9.315e-05,2]
[420733342,1776513042249,-897.1,9.315e-05,2]
[420733343,1776513042258,-500.0,9.315e-05,2]
[420733344,1776513042267,-553.2,9.315e-05,2]
[420733345,1776513042277,-536.0,9.315e-05,2]
[420733346,1776513042286,-1186.31,9.315e-05,2]
[420733347,1776513042295,-500.0,9.315e-05,2]
[420733348,1776513042305,-2215.72,9.315e-05,2]
[420733349,1776513042314,-500.0,9.315e-05,2]
[420733350,1776513042323,-1139.0,9.315e-05,2]
[420733351,1776513042332,-2000.0,9.316e-05,2]
[420733352,1776513042342,-2398.4119403,9.402e-05,2]
[420733353,1776513042351,-151.0,9.408e-05,5]
[420733354,1776513042360,-483.5815177,9.489e-05,2]
[420733355,1776513042370,-500.0,9.589e-05,2]
[420733356,1776513042379,-500.0,9.589e-05,2]
[420733357,1776513042388,-500.0,9.589e-05,2]
[420733358,1776513042398,-500.0,9.589e-05,2]
[420733359,1776513042407,-500.0,9.589e-05,2]
[420733360,1776513042417,-1431.39,9.589e-05,2]
[420733361,1776513042427,-500.0,9.589e-05,2]
[420733362,1776513042436,-557.23,9.589e-05,2]
[420733363,1776513042446,-1298.34,9.589e-05,2]
[420733364,1776513042455,-500.0,9.589e-05,2]
[420733365,1776513042465,-1083.83,9.589e-05,2]
[420733366,1776513042474,-500.0,9.589e-05,2]
[420733367,1776513042483,-500.0,9.589e-05,2]
[420733368,1776513042493,-500.0,9.589e-05,2]
[420733369,1776513042502,-1720.93,9.589e-05,2]
[420733370,1776513042512,-500.0,9.589e-05,2]
[420733371,1776513042521,-521.42,9.589e-05,2]
[420733372,1776513042530,-735.8,9.589e-05,2]
[420733373,1776513042540,-500.0,9.589e-05,2]
[420733374,1776513042550,-719.62,9.589e-05,2]
[420733376,1776513042559,-615.49,9.589e-05,2]
[420733378,1776513042569,-1745.94,9.589e-05,2]
[420733380,1776513042578,-902.7,9.589e-05,2]
[420733382,1776513042587,-500.0,9.589e-05,2]
[420733384,1776513042598,-500.0,9.589e-05,2]
[420733387,1776513042608,-772.19,9.589e-05,2]
[420733391,1776513042619,-700.8,9.589e-05,2]
[420733395,1776513042628,-500.62,9.589e-05,2]
[420733398,1776513042637,-4393.68,9.589e-05,2]
[420733399,1776513042647,-733.83,9.589e-05,2]
[420733400,1776513042656,-579.09,9.589e-05,2]
[420733401,1776513042665,-500.0,9.589e-05,2]
[420733402,1776513042674,-897.1,9.589e-05,2]
[420733403,1776513042683,-553.2,9.589e-05,2]
[420733404,1776513042693,-536.0,9.589e-05,2]
[420733405,1776513042702,-1186.31,9.589e-05,2]
[420733406,1776513042711,-500.0,9.589e-05,2]
[420733407,1776513042721,-283.59343015,9.589e-05,2]
[420733408,1776513042924,-2395.07942354,4.941e-05,2]
[420733409,1776513042933,-2747.67828531,7.598e-05,2]
[420733410,1776513042944,-1549.6017491,7.598e-05,2]
[420733411,1776513043401,-14559.34357715,7.598e-05,2]
[420733485,1776513046512,-13700.12653948,7.598e-05,2]
[420733487,1776513046524,-1846.82219363,7.598e-05,2]
[420733569,1776513145912,500.0,0.00023551,120]
[420733570,1776513426973,151.999999,0.00023452,120]
[420733571,1776513444853,500.0,0.00023452,120]
[420733575,1776513557815,500.0,0.00024657,120]
[420733576,1776513558042,500.0,0.00024657,120]
[420733577,1776513558267,500.0,0.00024657,120]
[420733578,1776513558488,500.0,0.00024657,120]
[420733579,1776513558716,500.0,0.00024657,120]
[420733580,1776513558957,500.0,0.00024657,120]
[420733581,1776513559211,500.0,0.00024657,120]
[420733582,1776513559432,500.0,0.00024657,120]
[420733583,1776513559672,500.0,0.00024657,120]
[420733584,1776513559911,500.0,0.00024657,120]
[420733585,1776513560138,377.61265435,0.00024657,120]
[420733586,1776513588208,1290.69,0.00024657,120]
[420733587,1776513588784,1290.69,0.00024657,120]
[420733588,1776513589052,1290.69,0.00024657,120]
[420733589,1776513589286,1290.69,0.00024657,120]
[420733590,1776513589718,1290.69,0.00024657,120]
[420733591,1776513589952,1290.69,0.00024657,120]
[420733592,1776513590188,1290.69,0.00024657,120]
[420733593,1776513590560,1290.69,0.00024657,120]
[420733594,1776513590747,1290.69,0.00024657,120]
[420733595,1776513590935,1290.69,0.00024657,120]
[420733596,1776513591200,1290.69,0.00024657,120]
[420733597,1776513591431,1290.69,0.00024657,120]
[420733598,1776513591663,1290.69,0.00024657,120]
[420733599,1776513591900,1290.69,0.00024657,120]
[420733600,1776513592133,1290.69,0.00024657,120]
[420733601,1776513592397,1290.69,0.00024657,120]
[420733602,1776513592631,1290.69,0.00024657,120]
[420733603,1776513592860,1290.69,0.00024657,120]
[420733604,1776513593097,1290.69,0.00024657,120]
[420733605,1776513593327,1290.69,0.00024657,120]
[420733606,1776513593560,1290.69,0.00024657,120]
[420733607,1776513593788,1290.69,0.00024657,120]
[420733608,1776513594022,1290.69,0.00024657,120]
[420733609,1776513594256,1290.91958794,0.00024657,120]
[420733610,1776513597100,500.0,0.00024657,120]
[420733611,1776513597341,500.0,0.00024657,120]
[420733612,1776513597582,500.0,0.00024657,120]
[420733613,1776513597812,500.0,0.00024657,120]
[420733614,1776513598251,500.0,0.00024657,120]
[420733615,1776513598556,500.0,0.00024657,120]
[420733616,1776513598815,570.01403978,0.00024657,120]
[420733617,1776513612077,500.0,0.00024657,120]
[420733618,1776513612330,500.0,0.00024657,120]
[420733619,1776513612568,500.0,0.00024657,120]
[420733620,1776513612797,500.0,0.00024657,120]
[420733621,1776513613026,500.0,0.00024657,120]
[420733622,1776513613259,500.0,0.00024657,120]
[420733623,1776513613490,500.0,0.00024657,120]
[420733624,1776513613843,500.0,0.00024657,120]
[420733625,1776513613994,500.0,0.00024657,120]
[420733626,1776513614221,500.0,0.00024657,120]
[420733627,1776513614444,500.0,0.00024657,120]
[420733628,1776513614703,500.0,0.00024657,120]
[420733629,1776513614939,280.10816012,0.00024657,120]
[420733630,1776513618660,510.82757776,0.00024657,120]
[420733631,1776513621950,501.14987919,0.00024657,120]
[420733632,1776513624655,551.85,0.00024657,120]
[420733633,1776513624880,551.85,0.00024657,120]
[420733634,1776513625044,505.48965783,0.00024657,120]
[420733635,1776513625105,551.85,0.00024657,120]
[420733636,1776513625328,551.85,0.00024657,120]
[420733637,1776513625554,551.85,0.00024657,120]
[420733638,1776513628440,256.02559461,0.00024657,120]
[420733639,1776513633225,551.85,0.00024657,120]
[420733640,1776513633659,551.85,0.00024657,120]
[420733641,1776513633927,551.85,0.00024657,120]
[420733642,1776513634161,551.85,0.00024657,120]
[420733643,1776513634425,551.85,0.00024657,120]
[420733644,1776513634691,551.85,0.00024657,120]
[420733645,1776513634940,551.85,0.00024657,120]
[420733646,1776513635182,551.85,0.00024657,120]
[420733647,1776513635425,551.85,0.00024657,120]
[420733648,1776513635668,551.85,0.00024657,120]
[420733649,1776513635899,551.85,0.00024657,120]
[420733650,1776513636136,551.85,0.00024657,120]
[420733651,1776513636373,551.85,0.00024657,120]
[420733652,1776513636820,551.85,0.00024657,120]
[420733653,1776513636865,500.0,0.00024657,120]
[420733654,1776513636932,551.85,0.00024657,120]
[420733655,1776513636982,500.0,0.00024657,120]
[420733656,1776513637087,551.85,0.00024657,120]
[420733657,1776513637136,500.0,0.00024657,120]
[420733658,1776513637335,551.85,0.00024657,120]
[420733659,1776513637396,435.69839963,0.00024657,120]
[420733660,1776513637607,551.85,0.00024657,120]
[420733661,1776513637908,552.03964323,0.00024657,120]
[420733662,1776513639488,500.0,0.00024657,120]
[420733663,1776513639724,500.0,0.00024657,120]
[420733664,1776513639779,500.0,0.00024657,120]
[420733665,1776513640014,500.0,0.00024657,120]
[420733666,1776513640059,500.0,0.00024657,120]
[420733667,1776513640224,500.0,0.00024657,120]
[420733668,1776513640273,500.0,0.00024657,120]
[420733669,1776513640462,497.74306542,0.00024657,120]
[420733670,1776513640508,500.0,0.00024657,120]
[420733671,1776513640552,500.0,0.00024657,120]
[420733672,1776513640748,500.0,0.00024657,120]
[420733673,1776513640794,500.0,0.00024657,120]
[420733674,1776513640992,644.81373185,0.00024657,120]
[420733675,1776513641044,500.0,0.00024657,120]
[420733676,1776513641276,500.0,0.00024657,120]
[420733677,1776513641516,500.0,0.00024657,120]
[420733678,1776513641757,500.0,0.00024657,120]
[420733679,1776513642002,500.0,0.00024657,120]
[420733680,1776513642497,500.0,0.00024657,120]
[420733681,1776513642644,500.0,0.00024657,120]
[420733682,1776513642751,500.0,0.00024657,120]
[420733683,1776513642954,500.0,0.00024657,120]
[420733684,1776513643003,500.0,0.00024657,120]
[420733685,1776513643199,500.0,0.00024657,120]
[420733686,1776513643238,500.0,0.00024657,120]
[420733687,1776513643431,500.0,0.00024657,120]
[420733688,1776513643470,500.0,0.00024657,120]
[420733689,1776513643672,500.0,0.00024657,120]
[420733690,1776513643734,500.0,0.00024657,120]
[420733691,1776513643911,500.0,0.00024657,120]
[420733692,1776513643973,500.0,0.00024657,120]
[420733693,1776513644206,500.0,0.00024657,120]
[420733694,1776513644245,500.0,0.00024657,120]
[420733695,1776513644450,500.0,0.00024657,120]
[420733696,1776513644489,500.0,0.00024657,120]
[420733697,1776513644691,500.0,0.00024657,120]
[420733698,1776513644730,578.88303332,0.00024657,120]
[420733699,1776513644930,500.0,0.00024657,120]
[420733700,1776513644986,630.79766052,0.00024657,120]
[420733701,1776513645157,500.0,0.00024657,120]
[420733702,1776513645382,500.0,0.00024657,120]
[420733703,1776513645613,500.0,0.00024657,120]
[420733704,1776513645862,500.0,0.00024657,120]
[420733705,1776513646067,515.97317055,0.00024657,120]
[420733706,1776513646106,500.0,0.00024657,120]
[420733707,1776513646340,500.0,0.00024657,120]
[420733708,1776513646601,500.0,0.00024657,120]
[420733709,1776513647079,500.0,0.00024657,120]
[420733710,1776513647243,500.0,0.00024657,120]
[420733711,1776513647477,500.0,0.00024657,120]
[420733712,1776513647705,501.96319312,0.00024657,120]
[420733713,1776513647750,500.0,0.00024657,120]
[420733714,1776513647950,500.0,0.00024657,120]
[420733715,1776513648207,500.0,0.00024657,120]
[420733716,1776513648434,334.12,0.00024657,120]
[420733717,1776513649518,500.0,0.00024657,120]
[420733718,1776513649744,502.03,0.00024657,120]
[420733719,1776513650081,537.94,0.00024657,120]
[420733720,1776513650305,537.94,0.00024657,120]
[420733721,1776513650524,537.94,0.00024657,120]
[420733722,1776513651323,500.0,0.00024657,120]
[420733723,1776513651566,500.0,0.00024657,120]
[420733724,1776513651731,537.94,0.00024657,120]
[420733725,1776513651807,500.0,0.00024657,120]
[420733726,1776513652035,278.54670667,0.00024657,120]
[420733727,1776513652073,537.94,0.00024657,120]
[420733728,1776513652290,537.94,0.00024657,120]
[420733729,1776513652514,537.94,0.00024657,120]
[420733730,1776513652918,537.94,0.00024657,120]
[420733731,1776513652968,537.94,0.00024657,120]
[420733732,1776513653190,537.94,0.00024657,120]
[420733733,1776513653301,501.01105374,0.00024657,120]
[420733734,1776513653415,537.94,0.00024657,120]
[420733735,1776513653637,537.94,0.00024657,120]
[420733736,1776513654211,537.94,0.00024657,120]
[420733737,1776513654477,537.94,0.00024657,120]
[420733738,1776513654705,537.94,0.00024657,120]
[420733739,1776513654937,537.94,0.00024657,120]
[420733740,1776513655175,537.94,0.00024657,120]
[420733741,1776513655237,506.79579136,0.00024657,120]
[420733742,1776513655409,537.94,0.00024657,120]
[420733743,1776513655646,537.94,0.00024657,120]
[420733744,1776513655870,537.94,0.00024657,120]
[420733745,1776513656100,537.94,0.00024657,120]
[420733746,1776513656939,500.0,0.00024657,120]
[420733747,1776513657354,500.0,0.00024657,120]
[420733748,1776513657436,500.0,0.00024657,120]
[420733749,1776513657685,500.0,0.00024657,120]
[420733750,1776513658231,500.0,0.00024657,120]
[420733751,1776513658468,500.0,0.00024657,120]
[420733752,1776513658699,500.0,0.00024657,120]
[420733753,1776513659300,178.32,0.00024657,120]
[420733754,1776513660098,500.11482226,0.00024657,120]
[420733755,1776513661246,528.18469989,0.00024657,120]
[420733756,1776513661326,500.0,0.00024657,120]
[420733757,1776513661553,500.0,0.00024657,120]
[420733758,1776513661784,500.0,0.00024657,120]
[420733759,1776513662008,572.62881863,0.00024657,120]
[420733760,1776513662464,-94.23000536,6.442e-05,2]
[420733761,1776513662502,-1734.53998928,6.442e-05,2]
[420733762,1776513664548,537.94,0.00024657,120]
[420733763,1776513664744,201.85030718,0.00024657,120]
[420733764,1776513664803,537.94,0.00024657,120]
[420733765,1776513665029,537.97660691,0.00024657,120]
[420733766,1776513666743,1501.5,0.00024657,120]
[420733767,1776513666970,1501.5,0.00024657,120]
[420733768,1776513667208,1501.5,0.00024657,120]
[420733769,1776513669174,1501.5,0.00024657,120]
[420733770,1776513669409,1501.5,0.00024657,120]
[420733771,1776513669653,1501.5,0.00024657,120]
[420733772,1776513669917,1501.5,0.00024657,120]
[420733773,1776513670166,1501.5,0.00024657,120]
[420733774,1776513670416,1501.5,0.00024657,120]
[420733775,1776513670701,1501.5,0.00024657,120]
[420733776,1776513670955,1501.5,0.00024657,120]
[420733777,1776513671193,1501.5,0.00024657,120]
[420733778,1776513671438,1501.5,0.00024657,120]
[420733779,1776513671727,1501.5,0.00024657,120]
[420733780,1776513671972,1501.5,0.00024657,120]
[420733781,1776513672243,1501.5,0.00024657,120]
[420733782,1776513672463,1501.5,0.00024657,120]
[420733783,1776513672715,1501.5,0.00024657,120]
[420733784,1776513672960,1501.5,0.00024657,120]
[420733785,1776513673198,1501.5,0.00024657,120]
[420733786,1776513673453,1501.5,0.00024657,120]
[420733787,1776513673785,1501.5,0.00024657,120]
[420733788,1776513674008,1501.5,0.00024657,120]
[420733789,1776513674249,1501.5189252,0.00024657,120]
[420733790,1776513677007,619.74,0.00024657,120]
[420733791,1776513677261,619.74,0.00024657,120]
[420733792,1776513677546,619.74,0.00024657,120]
[420733793,1776513677641,500.0,0.00024657,120]
[420733794,1776513678071,619.74,0.00024657,120]
[420733795,1776513678112,619.74,0.00024657,120]
[420733796,1776513678318,619.74,0.00024657,120]
[420733797,1776513678569,619.74,0.00024657,120]
[420733798,1776513678821,619.74,0.00024657,120]
[420733799,1776513679426,619.74,0.00024657,120]
[420733800,1776513679688,619.74,0.00024657,120]
[420733801,1776513679920,619.74,0.00024657,120]
[420733802,1776513680146,619.74,0.00024657,120]
[420733803,1776513680371,619.74,0.00024657,120]
[420733804,1776513680603,619.74,0.00024657,120]
[420733805,1776513681047,619.74,0.00024657,120]
[420733806,1776513681124,619.74,0.00024657,120]
[420733807,1776513681353,619.74,0.00024657,120]
[420733808,1776513681590,619.74,0.00024657,120]
[420733809,1776513681755,170.43999458,0.00024657,120]
[420733810,1776513681814,619.74,0.00024657,120]
[420733811,1776513682046,619.74,0.00024657,120]
[420733812,1776513682276,619.74,0.00024657,120]
[420733813,1776513682520,619.74,0.00024657,120]
[420733814,1776513682789,619.74,0.00024657,120]
[420733815,1776513683028,619.87600026,0.00024657,120]
[420733816,1776513686469,502.62000912,0.00024657,120]
[420733817,1776513689760,500.66897796,0.00024657,120]
[420733818,1776513695087,3295.26,0.00024657,120]
[420733819,1776513695696,3295.26,0.00024657,120]
[420733820,1776513695928,3295.26,0.00024657,120]
[420733821,1776513696177,3295.26,0.00024657,120]
[420733822,1776513696235,505.70351148,0.00024657,120]
[420733823,1776513696454,3295.26,0.00024657,120]
[420733824,1776513696642,500.0,0.00024657,120]
[420733825,1776513696698,3295.26,0.00024657,120]
[420733826,1776513697142,500.0,0.00024657,120]
[420733827,1776513697321,3295.26,0.00024657,120]
[420733828,1776513697371,500.0,0.00024657,120]
[420733829,1776513697416,3295.26,0.00024657,120]
[420733830,1776513697459,630.61145079,0.00024657,120]
[420733831,1776513697507,3295.26,0.00024657,120]
[420733832,1776513697639,3295.26,0.00024657,120]
[420733833,1776513697879,3295.26,0.00024657,120]
[420733834,1776513698421,3295.26,0.00024657,120]
[420733835,1776513698735,3295.26,0.00024657,120]
[420733836,1776513698877,3295.26,0.00024657,120]
[420733837,1776513699116,3295.26,0.00024657,120]
[420733838,1776513699718,3295.26,0.00024657,120]
[420733839,1776513699986,3295.26,0.00024657,120]
[420733840,1776513700231,3295.26,0.00024657,120]
[420733841,1776513700463,3295.26,0.00024657,120]
[420733842,1776513700697,3295.26,0.00024657,120]
[420733843,1776513700944,3295.26,0.00024657,120]
[420733844,1776513701019,501.77455357,0.00024657,120]
[420733845,1776513701174,3295.26,0.00024657,120]
[420733846,1776513701395,3295.26,0.00024657,120]
[420733847,1776513701626,3295.46088436,0.00024657,120]
[420733848,1776513702436,544.5,0.00024657,120]
[420733849,1776513702663,544.5,0.00024657,120]
[420733850,1776513702905,544.5,0.00024657,120]
[420733851,1776513703147,544.5,0.00024657,120]
[420733852,1776513703402,544.5,0.00024657,120]
[420733853,1776513703655,544.5,0.00024657,120]
[420733854,1776513703832,191.13197166,0.00024657,120]
[420733855,1776513704012,544.5,0.00024657,120]
[420733856,1776513704433,544.5,0.00024657,120]
[420733857,1776513704742,544.5,0.00024657,120]
[420733858,1776513704983,544.5,0.00024657,120]
[420733859,1776513705221,544.5,0.00024657,120]
[420733860,1776513705482,544.5,0.00024657,120]
[420733861,1776513705702,544.5,0.00024657,120]
[420733862,1776513705763,500.98007366,0.00024657,120]
[420733863,1776513705946,500.0,0.00024657,120]
[420733864,1776513706166,544.5,0.00024657,120]
[420733865,1776513706213,500.0,0.00024657,120]
[420733866,1776513706270,544.5,0.00024657,120]
[420733867,1776513706465,500.0,0.00024657,120]
[420733868,1776513706509,544.5,0.00024657,120]
[420733869,1776513706710,500.0,0.00024657,120]
[420733870,1776513706769,544.5,0.00024657,120]
[420733871,1776513706939,500.0,0.00024657,120]
[420733872,1776513706994,544.5,0.00024657,120]
[420733873,1776513707206,500.0,0.00024657,120]
[420733874,1776513707245,544.5,0.00024657,120]
[420733875,1776513707403,500.18650422,0.00024657,120]
[420733876,1776513707443,500.0,0.00024657,120]
[420733877,1776513707480,544.5,0.00024657,120]
[420733878,1776513707699,544.5,0.00024657,120]
[420733879,1776513707808,500.0,0.00024657,120]
[420733880,1776513707968,544.5,0.00024657,120]
[420733881,1776513708091,500.0,0.00024657,120]
[420733882,1776513708210,544.5,0.00024657,120]
[420733883,1776513708254,500.0,0.00024657,120]
[420733884,1776513708439,544.67440217,0.00024657,120]
[420733885,1776513708476,672.82,0.00024657,120]
[420733886,1776513708514,500.0,0.00024657,120]
[420733887,1776513708913,500.0,0.00024657,120]
[420733888,1776513708951,672.82,0.00024657,120]
[420733889,1776513708995,558.41464596,0.00024657,120]
[420733890,1776513709067,672.82,0.00024657,120]
[420733891,1776513709314,672.82,0.00024657,120]
[420733892,1776513709456,243.86933604,0.00024657,120]
[420733893,1776513709552,672.82,0.00024657,120]